fUST/lending_fUST_20240902
["ID","MTS","AMOUNT","RATE_DAILY","PERIOD"]
[336856130,1725215455615,-500.0,0.00025479,2]
[336856131,1725215455624,-547.3349007,0.00025479,2]
[336856132,1725215455634,-483.58727684,0.00025479,2]
[336856133,1725215455644,-562.94,0.00025479,2]
[336856134,1725215455654,-500.0,0.00025479,2]
[336856135,1725215455663,-500.0,0.00025479,2]
[336856136,1725215455673,-935.11,0.00025479,2]
[336856137,1725215455683,-500.0,0.00025479,2]
[336856138,1725215455692,-500.0,0.00025479,2]
[336856139,1725215455701,-500.0,0.00025479,2]
[336856140,1725215455710,-500.0,0.00025479,2]
[336856141,1725215455719,-500.0,0.00025479,2]
[336856142,1725215455729,-500.0,0.00025479,2]
[336856143,1725215455739,-500.0,0.00025479,2]
[336856144,1725215455748,-3222.16,0.00025479,2]
[336856145,1725215455758,-499.0718775,0.00025479,2]
[336856146,1725215455767,-500.0,0.00025479,2]
[336856147,1725215455776,-500.0,0.00025479,2]
[336856148,1725215455785,-673.69,0.00025479,2]
[336856149,1725215455795,-500.0,0.00025479,2]
[336856150,1725215455804,-373.26231156,0.00025479,2]
[336856151,1725215455813,-667.92,0.00025479,2]
[336856152,1725215455822,-1213.8,0.00025479,2]
[336856153,1725215455831,-758.25,0.00025479,2]
[336856154,1725215455840,-500.0,0.00025479,2]
[336856155,1725215455849,-625.34,0.00025479,2]
[336856156,1725215455859,-500.0,0.00025479,2]
[336856157,1725215455868,-644.82726291,0.00025479,2]
[336856158,1725215455877,-500.0,0.00025479,2]
[336856159,1725215455886,-683.92,0.00025479,2]
[336856160,1725215455895,-607.62,0.00025479,2]
[336856161,1725215455905,-674.08,0.00025479,2]
[336856162,1725215455916,-500.0,0.00025479,2]
[336856163,1725215455926,-500.0,0.00025479,2]
[336856164,1725215455935,-533.86,0.00025479,2]
[336856165,1725215455944,-500.0,0.00025479,2]
[336856166,1725215455953,-500.0,0.00025479,2]
[336856167,1725215455963,-500.0,0.00025479,2]
[336856168,1725215455972,-500.0,0.00025479,2]
[336856169,1725215455982,-500.0,0.00025479,2]
[336856170,1725215455991,-500.0,0.00025479,2]
[336856171,1725215456000,-500.0,0.00025479,2]
[336856172,1725215456010,-500.0,0.00025479,2]
[336856173,1725215456019,-500.0,0.00025479,2]
[336856174,1725215456029,-279.92013311,0.00025479,2]
[336856175,1725215456038,-500.0,0.00025479,2]
[336856176,1725215456048,-662.7,0.00025479,2]
[336856177,1725215456057,-640.46,0.00025479,2]
[336856178,1725215456067,-500.0,0.00025479,2]
[336856179,1725215456076,-500.0,0.00025479,2]
[336856180,1725215456085,-505.01130212,0.00025479,2]
[336856181,1725215456095,-500.0,0.00025479,2]
[336856182,1725215456104,-500.0,0.00025479,2]
[336856183,1725215456114,-500.0,0.00025479,2]
[336856184,1725215456123,-1209.49,0.00025479,2]
[336856185,1725215456132,-500.0,0.00025479,2]
[336856186,1725215456142,-1015.74,0.00025479,2]
[336856187,1725215456151,-751.25,0.00025479,2]
[336856188,1725215456160,-772.03,0.00025479,2]
[336856189,1725215456172,-555.28,0.00025479,2]
[336856190,1725215456181,-1110.68,0.00025479,2]
[336856191,1725215456190,-500.0,0.00025479,2]
[336856192,1725215456200,-1758.27,0.00025479,2]
[336856193,1725215456210,-500.0,0.00025479,2]
[336856194,1725215456219,-5517.21,0.00025479,2]
[336856195,1725215456228,-500.0,0.00025479,2]
[336856196,1725215456238,-500.0,0.00025479,2]
[336856197,1725215456247,-2240.32,0.00025479,2]
[336856198,1725215456256,-984.79,0.00025479,2]
[336856199,1725215456266,-500.0,0.00025479,2]
[336856200,1725215456275,-1783.27,0.00025479,2]
[336856201,1725215456284,-500.0,0.00025479,2]
[336856202,1725215456296,-500.0,0.00025479,2]
[336856203,1725215456306,-2629.02,0.00025479,2]
[336856204,1725215456406,-1629.43,0.00025479,2]
[336856205,1725215456425,-506.33,0.00025479,2]
[336856206,1725215456435,-1242.97,0.00025479,2]
[336856207,1725215456445,-500.0,0.00025479,2]
[336856208,1725215456455,-1079.32,0.00025479,2]
[336856209,1725215456464,-500.0,0.00025479,2]
[336856210,1725215456474,-500.0,0.00025479,2]
[336856211,1725215456483,-500.0,0.00025479,2]
[336856212,1725215456493,-721.57,0.00025479,2]
[336856213,1725215456503,-1619.62,0.00025479,2]
[336856214,1725215456512,-585.54,0.00025479,2]
[336856215,1725215456522,-1470.2,0.00025479,2]
[336856216,1725215456531,-888.35,0.00025479,2]
[336856217,1725215456540,-500.0,0.00025479,2]
[336856218,1725215456550,-500.0,0.00025479,2]
[336856219,1725215456561,-527.65,0.00025479,2]
[336856220,1725215456573,-1076.25,0.00025479,2]
[336856221,1725215456583,-2023.14,0.00025479,2]
[336856222,1725215456593,-2074.7,0.00025479,2]
[336856223,1725215456603,-500.0,0.00025479,2]
[336856224,1725215456615,-1359.2,0.00025479,2]
[336856225,1725215456625,-594.96,0.00025479,2]
[336856226,1725215456635,-1295.16,0.00025479,2]
[336856227,1725215456647,-500.0,0.00025479,2]
[336856228,1725215456656,-500.0,0.00025479,2]
[336856229,1725215456668,-1896.14,0.00025479,2]
[336856230,1725215456678,-500.0,0.00025479,2]
[336856231,1725215456688,-500.0,0.00025479,2]
[336856232,1725215456698,-742.76,0.00025479,2]
[336856233,1725215456708,-544.43,0.00025479,2]
[336856234,1725215456718,-535.08869008,0.00025479,2]
[336856235,1725215456727,-500.0,0.00025479,2]
[336856236,1725215456737,-500.0,0.00025479,2]
[336856237,1725215456746,-500.0,0.00025479,2]
[336856238,1725215456756,-330.146762,0.00025479,7]
[336856239,1725215456766,-330.146762,0.00025479,7]
[336856240,1725215456776,-500.0,0.00025479,2]
[336856241,1725215456787,-1704.95,0.00025479,2]
[336856242,1725215456797,-330.146762,0.00025479,7]
[336856243,1725215456807,-330.146762,0.00025479,7]
[336856244,1725215456817,-2275.91,0.00025479,2]
[336856245,1725215456826,-763.9,0.00025479,2]
[336856246,1725215456836,-500.0,0.00025479,2]
[336856247,1725215456845,-500.0,0.00025479,2]
[336856248,1725215456858,-500.0,0.00025479,2]
[336856249,1725215456868,-500.0,0.00025479,2]
[336856250,1725215456877,-704.69,0.00025479,2]
[336856251,1725215456888,-13304.05,0.00025479,2]
[336856252,1725215456898,-500.0,0.00025479,2]
[336856253,1725215456908,-500.0,0.00025479,2]
[336856254,1725215456922,-500.0,0.00025479,2]
[336856255,1725215456932,-699.49,0.00025479,2]
[336856256,1725215456942,-2354.18,0.00025479,2]
[336856257,1725215456952,-500.0,0.00025479,2]
[336856258,1725215456961,-1717.48,0.00025479,2]
[336856259,1725215456970,-1650.55,0.00025479,2]
[336856260,1725215456981,-1724.01,0.00025479,2]
[336856261,1725215456991,-500.0,0.00025479,2]
[336856262,1725215457000,-500.0,0.00025479,2]
[336856263,1725215457010,-2159.25,0.00025479,2]
[336856264,1725215457020,-500.0,0.00025479,2]
[336856265,1725215457031,-500.0,0.00025479,2]
[336856266,1725215457041,-728.71153545,0.00025479,2]
[336856267,1725215457065,-367.68846455,0.00025479,2]
[336856268,1725215457074,-779.61,0.00025479,2]
[336856269,1725215457084,-500.0,0.00025479,2]
[336856270,1725215457094,-1346.63,0.00025479,2]
[336856271,1725215457104,-2785.55,0.00025479,2]
[336856272,1725215457115,-500.0,0.00025479,2]
[336856273,1725215457125,-710.04,0.00025479,2]
[336856274,1725215457135,-500.0,0.00025479,2]
[336856275,1725215457144,-500.0,0.00025479,2]
[336856276,1725215457154,-500.0,0.00025479,2]
[336856277,1725215457165,-694.54,0.00025479,2]
[336856278,1725215457175,-500.0,0.00025479,2]
[336856279,1725215457185,-651.91,0.00025479,2]
[336856280,1725215457194,-680.75,0.00025479,2]
[336856281,1725215457203,-1217.07,0.00025479,2]
[336856282,1725215457213,-1570.55,0.00025479,2]
[336856283,1725215457223,-1068.74,0.00025479,2]
[336856284,1725215457234,-732.75,0.00025479,2]
[336856285,1725215457244,-1050.97,0.00025479,2]
[336856286,1725215457253,-500.0,0.00025479,2]
[336856287,1725215457264,-500.0,0.00025479,2]
[336856288,1725215457274,-500.0,0.00025479,2]
[336856289,1725215457283,-636.38749605,0.00025479,2]
[336856290,1725215457293,-500.0,0.00025479,2]
[336856291,1725215457302,-1409.27,0.00025479,2]
[336856292,1725215457311,-500.0,0.00025479,2]
[336856293,1725215457321,-1652.45,0.00025479,2]
[336856294,1725215457331,-1487.02,0.00025479,2]
[336856295,1725215457340,-1542.99,0.00025479,2]
[336856296,1725215457350,-500.0,0.00025479,2]
[336856297,1725215457359,-828.44,0.00025479,2]
[336856298,1725215457369,-672.62,0.00025479,2]
[336856299,1725215457378,-1617.74,0.00025479,2]
[336856300,1725215457389,-606.30590256,0.00025479,2]
[336856301,1725215457405,-500.0,0.00025479,2]
[336856302,1725215457427,-569.38,0.00025479,2]
[336856303,1725215457441,-1024.29,0.00025479,2]
[336856304,1725215457456,-1643.79,0.00025479,2]
[336856305,1725215457471,-1231.01,0.00025479,2]
[336856306,1725215457487,-500.0,0.00025479,2]
[336856307,1725215457503,-629.98,0.00025479,2]
[336856308,1725215457520,-500.0,0.00025479,2]
[336856309,1725215457533,-2625.78,0.00025479,2]
[336856310,1725215457550,-500.0,0.00025479,2]
[336856311,1725215457570,-7723.39,0.00025479,2]
[336856312,1725215457585,-1234.03,0.00025479,2]
[336856313,1725215457598,-740.27,0.00025479,2]
[336856314,1725215457612,-500.0,0.00025479,2]
[336856315,1725215457629,-1688.4,0.00025479,2]
[336856316,1725215457644,-552.21,0.00025479,2]
[336856317,1725215457662,-1856.33,0.00025479,2]
[336856318,1725215457690,-568.62,0.00025479,2]
[336856319,1725215457702,-1918.56,0.00025479,2]
[336856320,1725215457713,-500.0,0.00025479,2]
[336856321,1725215457731,-3731.96,0.00025479,2]
[336856322,1725215457744,-1050.57130271,0.00025479,2]
[336856326,1725215917932,202.869973,0.00014247,2]
[336856330,1725216406151,-202.869973,0.00020707,2]
[336856331,1725216406176,-472.6363864,0.00022653,2]
[336856332,1725216406199,-158.604313,0.00022874,2]
[336856333,1725216406223,-300.0,0.00023084,2]
[336856334,1725216406247,-7042.69025198,0.00023085,2]
[336856335,1725216435104,462.0,0.0002465,120]
[336856336,1725216435587,462.0,0.0002464,120]
[336856337,1725216436099,462.0,0.0002463,120]
[336856338,1725216439180,-300.0,0.00023084,2]
[336856339,1725216439202,-1686.99591539,0.00023085,2]
[336856341,1725216516781,161.801819,0.00014247,2]
[336856389,1725216638379,-300.0,0.00023084,2]
[336856391,1725216638389,-16170.31383263,0.00023085,2]
[336856393,1725216638398,-162.331416,0.00023158,2]
[336856395,1725216638407,-205.893289,0.00023456,2]
[336856397,1725216638417,-843.422738,0.00023836,2]
[336856399,1725216638427,-425.15078788,0.00024557,2]
[336856401,1725216638437,-425.15078784,0.00024626,2]
[336856402,1725216638447,-19223.4378748,0.00024647,3]
[336856404,1725216638456,-619.25,0.00024647,3]
[336856406,1725216638466,-309.62,0.00024647,3]
[336856408,1725216638475,-154.81,0.00024647,3]
[336856409,1725216638485,-500.0,0.00024656,2]
[336856410,1725216638494,-439.50102757,0.00024656,2]
[336856411,1725216638504,-1590.91203214,0.00024657,11]
[336856412,1725216638514,-500.0,0.00024657,2]
[336856413,1725216638525,-500.0,0.00024657,2]
[336856414,1725216638536,-500.0,0.00024657,2]
[336856415,1725216638547,-500.0,0.00024657,2]
[336856416,1725216638559,-500.0,0.00024657,2]
[336856417,1725216638569,-500.0,0.00024657,2]
[336856418,1725216638578,-500.0,0.00024657,2]
[336856419,1725216638589,-500.0,0.00024657,2]
[336856420,1725216638598,-500.0,0.00024657,2]
[336856421,1725216638610,-500.0,0.00024657,2]
[336856422,1725216638619,-500.0,0.00024657,2]
[336856423,1725216638629,-500.0,0.00024657,2]
[336856424,1725216638642,-500.0,0.00024657,2]
[336856425,1725216638653,-500.0,0.00024657,2]
[336856426,1725216638663,-500.0,0.00024657,2]
[336856427,1725216638673,-500.0,0.00024657,2]
[336856428,1725216638683,-500.0,0.00024657,2]
[336856429,1725216638694,-500.0,0.00024657,2]
[336856430,1725216638706,-500.0,0.00024657,2]
[336856431,1725216638716,-500.0,0.00024657,2]
[336856432,1725216638726,-849.25,0.00024657,2]
[336856433,1725216638737,-1036.92,0.00024657,2]
[336856434,1725216638747,-500.0,0.00024657,2]
[336856435,1725216638758,-500.0,0.00024657,2]
[336856436,1725216638767,-500.0,0.00024657,2]
[336856437,1725216638777,-500.0,0.00024657,2]
[336856438,1725216638969,-500.0,0.00024657,2]
[336856439,1725216638979,-500.0,0.00024657,2]
[336856440,1725216638990,-500.0,0.00024657,2]
[336856441,1725216638999,-500.0,0.00024657,2]
[336856442,1725216639011,-500.0,0.00024657,2]
[336856443,1725216639021,-500.0,0.00024657,2]
[336856444,1725216639030,-500.0,0.00024657,2]
[336856445,1725216639041,-500.0,0.00024657,2]
[336856446,1725216639051,-589.48,0.00024657,2]
[336856447,1725216639062,-384.48459736,0.00024657,2]
[336856448,1725216639071,-500.0,0.00024657,2]
[336856449,1725216639080,-500.0,0.00024657,2]
[336856450,1725216639091,-500.0,0.00024657,2]
[336856451,1725216639100,-500.0,0.00024657,2]
[336856452,1725216639110,-500.0,0.00024657,2]
[336856453,1725216639120,-500.0,0.00024657,2]
[336856454,1725216639130,-500.0,0.00024657,2]
[336856455,1725216639141,-500.0,0.00024657,2]
[336856456,1725216639150,-500.0,0.00024657,2]
[336856457,1725216639161,-500.0,0.00024657,2]
[336856458,1725216639171,-313.38460656,0.00024657,2]
[336856459,1725216639181,-534.49675471,0.00024657,2]
[336856460,1725216639191,-500.0,0.00024657,2]
[336856461,1725216639202,-500.0,0.00024657,2]
[336856462,1725216639212,-500.0,0.00024657,2]
[336856463,1725216639224,-598.43,0.00024657,2]
[336856464,1725216639234,-458.69737463,0.00024657,2]
[336856465,1725216639244,-500.0,0.00024657,2]
[336856466,1725216639256,-500.0,0.00024657,2]
[336856467,1725216639266,-420.58768688,0.00024657,2]
[336856468,1725216639276,-500.0,0.00024657,2]
[336856469,1725216639286,-500.0,0.00024657,2]
[336856470,1725216639295,-500.0,0.00024657,2]
[336856471,1725216639307,-500.0,0.00024657,2]
[336856472,1725216639317,-500.0,0.00024657,2]
[336856473,1725216639326,-500.0,0.00024657,2]
[336856474,1725216639335,-531.66,0.00024657,2]
[336856475,1725216639346,-500.0,0.00024657,2]
[336856476,1725216639356,-500.0,0.00024657,2]
[336856477,1725216639366,-500.93254474,0.00024657,2]
[336856478,1725216639375,-500.0,0.00024657,2]
[336856479,1725216639384,-500.0,0.00024657,2]
[336856480,1725216639394,-500.0,0.00024657,2]
[336856481,1725216639404,-500.0,0.00024657,2]
[336856482,1725216639414,-500.0,0.00024657,2]
[336856483,1725216639424,-605.09,0.00024657,2]
[336856484,1725216639434,-500.0,0.00024657,2]
[336856485,1725216639444,-500.0,0.00024657,2]
[336856486,1725216639454,-500.0,0.00024657,2]
[336856487,1725216639464,-500.0,0.00024657,2]
[336856488,1725216639473,-500.0,0.00024657,2]
[336856489,1725216639483,-500.0,0.00024657,2]
[336856490,1725216639494,-347.67815756,0.00024657,2]
[336856491,1725216639504,-518.04304816,0.00024657,2]
[336856492,1725216639514,-500.0,0.00024657,2]
[336856493,1725216639524,-593.02,0.00024657,2]
[336856494,1725216639534,-1013.26,0.00024657,2]
[336856495,1725216639544,-506.27679931,0.00024657,2]
[336856496,1725216639554,-500.0,0.00024657,2]
[336856497,1725216639564,-500.0,0.00024657,2]
[336856498,1725216639574,-500.0,0.00024657,2]
[336856499,1725216639583,-500.0,0.00024657,2]
[336856500,1725216639593,-502.05870304,0.00024657,2]
[336856501,1725216639603,-500.0,0.00024657,2]
[336856502,1725216639613,-500.0,0.00024657,2]
[336856503,1725216639623,-500.0,0.00024657,2]
[336856504,1725216639632,-500.0,0.00024657,2]
[336856505,1725216639642,-535.73,0.00024657,2]
[336856506,1725216639652,-500.0,0.00024657,2]
[336856507,1725216639661,-500.0,0.00024657,2]
[336856508,1725216639671,-507.51553229,0.00024657,2]
[336856509,1725216639681,-500.0,0.00024657,2]
[336856510,1725216639691,-500.0,0.00024657,2]
[336856511,1725216639700,-504.31704732,0.00024657,2]
[336856512,1725216639710,-500.0,0.00024657,2]
[336856513,1725216639720,-500.0,0.00024657,2]
[336856514,1725216639730,-500.0,0.00024657,2]
[336856515,1725216639740,-500.0,0.00024657,2]
[336856516,1725216639750,-500.0,0.00024657,2]
[336856517,1725216639760,-500.0,0.00024657,2]
[336856518,1725216639770,-506.48044378,0.00024657,2]
[336856519,1725216639779,-500.0,0.00024657,2]
[336856520,1725216639789,-500.0,0.00024657,2]
[336856521,1725216639799,-500.0,0.00024657,2]
[336856522,1725216639810,-500.0,0.00024657,2]
[336856523,1725216639822,-500.0,0.00024657,2]
[336856524,1725216639832,-500.0,0.00024657,2]
[336856525,1725216639841,-500.0,0.00024657,2]
[336856526,1725216639851,-500.0,0.00024657,2]
[336856527,1725216639861,-1403.14,0.00024657,2]
[336856528,1725216639870,-500.0,0.00024657,2]
[336856529,1725216639880,-500.0,0.00024657,2]
[336856530,1725216639890,-500.0,0.00024657,2]
[336856531,1725216639900,-188.53,0.00024657,2]
[336856532,1725216639910,-503.86842878,0.00024657,2]
[336856533,1725216639920,-500.0,0.00024657,2]
[336856534,1725216639933,-500.0,0.00024657,2]
[336856535,1725216639943,-623.68,0.00024657,2]
[336856536,1725216639953,-512.87,0.00024657,2]
[336856537,1725216639963,-500.0,0.00024657,2]
[336856538,1725216639973,-500.0,0.00024657,2]
[336856539,1725216639983,-503.75109237,0.00024657,2]
[336856540,1725216639993,-500.0,0.00024657,2]
[336856541,1725216640003,-500.0,0.00024657,2]
[336856542,1725216640016,-690.76,0.00024657,2]
[336856544,1725216640027,-500.0,0.00024657,2]
[336856546,1725216640036,-503.56710317,0.00024657,2]
[336856547,1725216640046,-500.0,0.00024657,2]
[336856549,1725216640059,-599.13,0.00024657,2]
[336856551,1725216640069,-500.0,0.00024657,2]
[336856553,1725216640079,-500.0,0.00024657,2]
[336856555,1725216640088,-500.0,0.00024657,2]
[336856556,1725216640098,-505.29352395,0.00024657,2]
[336856557,1725216640108,-500.0,0.00024657,2]
[336856558,1725216640117,-519.70414707,0.00024657,2]
[336856559,1725216640127,-500.0,0.00024657,2]
[336856560,1725216640137,-500.0,0.00024657,2]
[336856562,1725216640146,-500.0,0.00024657,2]
[336856564,1725216640156,-500.0,0.00024657,2]
[336856566,1725216640165,-833.99,0.00024657,2]
[336856568,1725216640175,-500.0,0.00024657,2]
[336856569,1725216640184,-500.0,0.00024657,2]
[336856570,1725216640194,-500.0,0.00024657,2]
[336856571,1725216640204,-500.0,0.00024657,2]
[336856572,1725216640214,-500.0,0.00024657,2]
[336856573,1725216640224,-500.0,0.00024657,2]
[336856574,1725216640233,-500.0,0.00024657,2]
[336856575,1725216640243,-500.0,0.00024657,2]
[336856576,1725216640252,-500.0,0.00024657,2]
[336856577,1725216640262,-500.0,0.00024657,2]
[336856578,1725216640272,-500.0,0.00024657,2]
[336856579,1725216640282,-500.0,0.00024657,2]
[336856580,1725216640292,-500.0,0.00024657,2]
[336856581,1725216640302,-500.0,0.00024657,2]
[336856582,1725216640316,-500.0,0.00024657,2]
[336856583,1725216640326,-500.0,0.00024657,2]
[336856584,1725216640336,-500.0,0.00024657,2]
[336856585,1725216640347,-500.0,0.00024657,2]
[336856586,1725216640357,-500.0,0.00024657,2]
[336856587,1725216640366,-500.0,0.00024657,2]
[336856588,1725216640376,-500.0,0.00024657,2]
[336856589,1725216640385,-500.0,0.00024657,2]
[336856590,1725216640396,-500.0,0.00024657,2]
[336856591,1725216640406,-500.0,0.00024657,2]
[336856592,1725216640415,-500.0,0.00024657,2]
[336856593,1725216640425,-500.0,0.00024657,2]
[336856595,1725216640435,-500.0,0.00024657,2]
[336856597,1725216640445,-500.0,0.00024657,2]
[336856599,1725216640454,-3057.05,0.00024657,2]
[336856601,1725216640464,-500.0,0.00024657,2]
[336856603,1725216640474,-500.0,0.00024657,2]
[336856604,1725216640484,-500.0,0.00024657,2]
[336856605,1725216640494,-500.81884854,0.00024657,2]
[336856606,1725216640505,-500.0,0.00024657,2]
[336856607,1725216640514,-500.0,0.00024657,2]
[336856608,1725216640524,-500.0,0.00024657,2]
[336856609,1725216640534,-500.0,0.00024657,2]
[336856610,1725216640544,-500.0,0.00024657,2]
[336856611,1725216640556,-170.40144116,0.00024657,2]
[336856612,1725216640567,-500.0,0.00024657,2]
[336856613,1725216640576,-584.43,0.00024657,2]
[336856614,1725216640586,-500.60029775,0.00024657,2]
[336856615,1725216640595,-500.0,0.00024657,2]
[336856616,1725216640605,-500.0,0.00024657,2]
[336856617,1725216640615,-1136.85,0.00024657,2]
[336856618,1725216640624,-794.43,0.00024657,2]
[336856619,1725216640634,-500.0,0.00024657,2]
[336856620,1725216640644,-547.17,0.00024657,2]
[336856621,1725216640654,-500.0,0.00024657,2]
[336856622,1725216640664,-500.0,0.00024657,2]
[336856623,1725216640673,-508.46636851,0.00024657,2]
[336856624,1725216640684,-500.0,0.00024657,2]
[336856625,1725216640694,-500.0,0.00024657,2]
[336856626,1725216640705,-500.0,0.00024657,2]
[336856627,1725216640715,-500.0,0.00024657,2]
[336856628,1725216640724,-500.0,0.00024657,2]
[336856629,1725216640734,-589.82,0.00024657,2]
[336856630,1725216640744,-500.0,0.00024657,2]
[336856631,1725216640754,-500.0,0.00024657,2]
[336856632,1725216640764,-500.0,0.00024657,2]
[336856633,1725216640774,-500.0,0.00024657,2]
[336856634,1725216640784,-500.0,0.00024657,2]
[336856635,1725216640794,-500.0,0.00024657,2]
[336856636,1725216640805,-500.0,0.00024657,2]
[336856637,1725216640815,-500.0,0.00024657,2]
[336856638,1725216640824,-572.92375437,0.00024657,2]
[336856639,1725216640834,-663.83,0.00024657,2]
[336856640,1725216640843,-500.0,0.00024657,2]
[336856641,1725216640853,-500.0,0.00024657,2]
[336856642,1725216640862,-500.0,0.00024657,2]
[336856643,1725216640872,-500.0,0.00024657,2]
[336856644,1725216640881,-500.0,0.00024657,2]
[336856645,1725216640890,-500.0,0.00024657,2]
[336856646,1725216640899,-500.0,0.00024657,2]
[336856647,1725216640908,-500.0,0.00024657,2]
[336856648,1725216640919,-500.0,0.00024657,2]
[336856649,1725216640930,-500.0,0.00024657,2]
[336856650,1725216640941,-500.0,0.00024657,2]
[336856651,1725216640952,-500.0,0.00024657,2]
[336856652,1725216640962,-500.0,0.00024657,2]
[336856653,1725216640972,-500.0,0.00024657,2]
[336856654,1725216640984,-500.0,0.00024657,2]
[336856655,1725216640994,-500.0,0.00024657,2]
[336856656,1725216641004,-500.0,0.00024657,2]
[336856657,1725216641016,-504.31194058,0.00024657,2]
[336856658,1725216641028,-500.0,0.00024657,2]
[336856659,1725216641038,-500.0,0.00024657,2]
[336856660,1725216641048,-500.0,0.00024657,2]
[336856661,1725216641061,-500.0,0.00024657,2]
[336856662,1725216641071,-500.0,0.00024657,2]
[336856663,1725216641080,-500.0,0.00024657,2]
[336856664,1725216641091,-500.0,0.00024657,2]
[336856665,1725216641102,-500.0,0.00024657,2]
[336856666,1725216641111,-500.0,0.00024657,2]
[336856667,1725216641120,-523.13785599,0.00024657,2]
[336856668,1725216641130,-500.0,0.00024657,2]
[336856669,1725216641139,-1084.66,0.00024657,2]
[336856670,1725216641148,-500.0,0.00024657,2]
[336856671,1725216641158,-500.0,0.00024657,2]
[336856672,1725216641167,-520.48181989,0.00024657,2]
[336856673,1725216641177,-354.29299928,0.00024657,2]
[336856674,1725216641186,-617.52,0.00024657,2]
[336856675,1725216641196,-500.0,0.00024657,2]
[336856676,1725216641205,-500.0,0.00024657,2]
[336856677,1725216641215,-500.0,0.00024657,2]
[336856678,1725216641224,-153.00000002,0.00024657,2]
[336856679,1725216641234,-888.77,0.00024657,2]
[336856680,1725216641243,-500.0,0.00024657,2]
[336856681,1725216641253,-703.62,0.00024657,2]
[336856682,1725216641262,-700.21,0.00024657,2]
[336856683,1725216641271,-500.0,0.00024657,2]
[336856684,1725216641281,-500.0,0.00024657,2]
[336856685,1725216641290,-500.0,0.00024657,2]
[336856686,1725216641299,-500.0,0.00024657,2]
[336856687,1725216641311,-500.0,0.00024657,2]
[336856688,1725216641320,-500.0,0.00024657,2]
[336856689,1725216641329,-2150.41,0.00024657,2]
[336856690,1725216641338,-1622.89,0.00024657,2]
[336856691,1725216641347,-243.3195536,0.00024657,2]
[336856692,1725216641357,-565.48646795,0.00024657,2]
[336856693,1725216641366,-500.0,0.00024657,2]
[336856694,1725216641375,-500.0,0.00024657,2]
[336856695,1725216641385,-500.0,0.00024657,2]
[336856696,1725216641394,-500.0,0.00024657,2]
[336856697,1725216641403,-500.0,0.00024657,2]
[336856698,1725216641412,-500.0,0.00024657,2]
[336856699,1725216641422,-500.0,0.00024657,2]
[336856700,1725216641431,-500.0,0.00024657,2]
[336856701,1725216641441,-500.0,0.00024657,2]
[336856702,1725216641450,-500.0,0.00024657,2]
[336856703,1725216641459,-500.0,0.00024657,2]
[336856704,1725216641469,-500.0,0.00024657,2]
[336856705,1725216641478,-500.0,0.00024657,2]
[336856706,1725216641487,-1119.4,0.00024657,2]
[336856707,1725216641497,-500.0,0.00024657,2]